[Event "*** Titled Tuesday Blitz"]
[Site "Chess.com"]
[Date "2020.11.24"]
[Round "2"]
[White "KaterinaMiroshnik"]
[Black "Mambastik-Fantastic"]
[Result "1-0"]
[WhiteElo "2523"]
[BlackElo "2298"]
[TimeControl "180+1"]
[EndTime "10:32:31 PST"]
[Termination "KaterinaMiroshnik won by resignation"]

1. d3 {[%clk 0:03:00.9]} 1... Nf6 {[%clk 0:02:59.1]} 2. Nf3 {[%clk 0:03:00.6]}
2... d5 {[%clk 0:02:58.9]} 3. Nbd2 {[%clk 0:03:01.5]} 3... Bg4 {[%clk
0:02:58.7]} 4. e4 {[%clk 0:03:01.7]} 4... e6 {[%clk 0:02:56.3]} 5. Be2 {[%clk
0:03:01.7]} 5... c6 {[%clk 0:02:54.2]} 6. O-O {[%clk 0:03:01.6]} 6... Be7 {[%clk
0:02:53.8]} 7. c3 {[%clk 0:03:01.8]} 7... Nbd7 {[%clk 0:02:53.7]} 8. Qc2 {[%clk
0:03:01.9]} 8... O-O {[%clk 0:02:53.5]} 9. e5 {[%clk 0:03:01.1]} 9... Ne8 {[%clk
0:02:49.6]} 10. d4 {[%clk 0:03:00.7]} 10... c5 {[%clk 0:02:49.3]} 11. Re1 {[%clk
0:02:56.6]} 11... Rc8 {[%clk 0:02:49.2]} 12. Qb1 {[%clk 0:02:56.2]} 12... Qb6
{[%clk 0:02:30.6]} 13. h3 {[%clk 0:02:48]} 13... Bh5 {[%clk 0:02:28.9]} 14. Bd3
{[%clk 0:02:42.5]} 14... Bg6 {[%clk 0:02:27.5]} 15. Bxg6 {[%clk 0:02:40.7]}
15... hxg6 {[%clk 0:02:20.7]} 16. Qd3 {[%clk 0:02:39.1]} 16... Nc7 {[%clk
0:02:15.1]} 17. Nf1 {[%clk 0:02:36.2]} 17... a5 {[%clk 0:02:10.5]} 18. Bg5
{[%clk 0:02:17.6]} 18... Bxg5 {[%clk 0:01:41.6]} 19. Nxg5 {[%clk 0:02:14.2]}
19... f6 {[%clk 0:01:40.6]} 20. exf6 {[%clk 0:02:11.6]} 20... Rxf6 {[%clk
0:01:40.8]} 21. Nh2 {[%clk 0:02:11.8]} 21... Rcf8 {[%clk 0:01:23.4]} 22. Nhf3
{[%clk 0:02:05.9]} 22... cxd4 {[%clk 0:01:11.9]} 23. cxd4 {[%clk 0:02:03.2]}
23... Nb5 {[%clk 0:01:12.1]} 24. Nxe6 {[%clk 0:01:58.2]} 24... Rxf3 {[%clk
0:00:41.2]} 25. gxf3 {[%clk 0:01:54.4]} 25... Rf6 {[%clk 0:00:41.2]} 26. Rac1
{[%clk 0:01:51.2]} 26... Rxe6 {[%clk 0:00:35.3]} 27. Rxe6 {[%clk 0:01:48.2]}
27... Qxe6 {[%clk 0:00:35.4]} 28. Qxb5 {[%clk 0:01:47.4]} 28... Qxh3 {[%clk
0:00:35.2]} 29. Qxd5+ {[%clk 0:01:43.5]} 29... Kh7 {[%clk 0:00:35.3]} 30. Rc8
{[%clk 0:01:41.8]} 30... Nf6 {[%clk 0:00:35]} 31. Qd8 {[%clk 0:01:38.7]} 31...
Kh6 {[%clk 0:00:26.3]} 32. Qh8+ {[%clk 0:01:37.5]} 32... Nh7 {[%clk 0:00:26.5]}
33. Rc7 {[%clk 0:01:33.4]} 33... Qxf3 {[%clk 0:00:23.9]} 34. Qxg7+ {[%clk
0:01:29.4]} 34... Kg5 {[%clk 0:00:23]} 35. Rc5+ {[%clk 0:01:29.8]} 35... Kf4
{[%clk 0:00:17.3]} 36. Qf7+ {[%clk 0:01:25.2]} 36... Ke4 {[%clk 0:00:12]} 37.
Qxg6+ {[%clk 0:01:22.4]} 37... Kxd4 {[%clk 0:00:10.6]} 38. Qd6+ {[%clk
0:01:22.4]} 38... Ke4 {[%clk 0:00:08.8]} 39. Qd5+ {[%clk 0:01:22]} 39... Kf4
{[%clk 0:00:07.8]} 40. Rc4+ {[%clk 0:01:20.7]} 1-0

[Event "*** Titled Tuesday Blitz"]
[Site "Chess.com"]
[Date "2020.11.24"]
[Round "2"]
[White "Rainmond"]
[Black "Ajedrez_con_German"]
[Result "1-0"]
[WhiteElo "2772"]
[BlackElo "2501"]
[TimeControl "180+1"]
[EndTime "10:32:35 PST"]
[Termination "Rainmond won by resignation"]

1. e4 {[%clk 0:03:00.9]} 1... e6 {[%clk 0:02:59.6]} 2. d4 {[%clk 0:02:59.3]}
2... d5 {[%clk 0:02:56.4]} 3. Nc3 {[%clk 0:02:58.7]} 3... Nf6 {[%clk 0:02:49.9]}
4. e5 {[%clk 0:02:58]} 4... Nfd7 {[%clk 0:02:49.9]} 5. f4 {[%clk 0:02:53.6]}
5... c5 {[%clk 0:02:49.8]} 6. Nf3 {[%clk 0:02:52.7]} 6... Nc6 {[%clk 0:02:49.8]}
7. Be3 {[%clk 0:02:50.8]} 7... cxd4 {[%clk 0:02:49.9]} 8. Nxd4 {[%clk
0:02:50.5]} 8... Bc5 {[%clk 0:02:50.8]} 9. Qd2 {[%clk 0:02:48.4]} 9... Nxd4
{[%clk 0:02:50.6]} 10. Bxd4 {[%clk 0:02:47.6]} 10... Bxd4 {[%clk 0:02:51.5]} 11.
Qxd4 {[%clk 0:02:47]} 11... Qb6 {[%clk 0:02:52.4]} 12. Nb5 {[%clk 0:02:32.6]}
12... Qxd4 {[%clk 0:02:48.2]} 13. Nxd4 {[%clk 0:02:33.5]} 13... a6 {[%clk
0:02:48.5]} 14. a4 {[%clk 0:02:30.8]} 14... Nb8 {[%clk 0:02:46.8]} 15. Kd2
{[%clk 0:02:27.9]} 15... Bd7 {[%clk 0:02:46.8]} 16. a5 {[%clk 0:02:26.8]} 16...
Nc6 {[%clk 0:02:46.8]} 17. Ke3 {[%clk 0:02:26.4]} 17... Nxd4 {[%clk 0:02:45.7]}
18. Kxd4 {[%clk 0:02:25.2]} 18... Ke7 {[%clk 0:02:44.2]} 19. Bd3 {[%clk
0:02:23.6]} 19... g6 {[%clk 0:02:38]} 20. Ra3 {[%clk 0:02:20.7]} 20... Rac8
{[%clk 0:02:37.2]} 21. Rb3 {[%clk 0:02:19.3]} 21... Rc7 {[%clk 0:02:35]} 22. Rb6
{[%clk 0:02:19.1]} 22... h6 {[%clk 0:02:05.7]} 23. g4 {[%clk 0:02:16.6]} 23...
h5 {[%clk 0:02:02.8]} 24. g5 {[%clk 0:02:14.1]} 24... Rhc8 {[%clk 0:01:54.4]}
25. Ra1 {[%clk 0:02:12.7]} 25... Kf8 {[%clk 0:01:42.2]} 26. Ra3 {[%clk
0:02:10.2]} 26... Ke7 {[%clk 0:01:28.9]} 27. Rab3 {[%clk 0:02:08.4]} 27... Ba4
{[%clk 0:01:21.9]} 28. Rxb7 {[%clk 0:01:38.2]} 28... Bxb3 {[%clk 0:01:15.6]} 29.
Rxb3 {[%clk 0:01:36.9]} 29... Rxc2 {[%clk 0:00:37]} 30. Bxc2 {[%clk 0:01:14.6]}
30... Rxc2 {[%clk 0:00:37]} 31. Rb7+ {[%clk 0:01:14.2]} 31... Ke8 {[%clk
0:00:34.6]} 32. b4 {[%clk 0:01:08.1]} 32... Rxh2 {[%clk 0:00:24.7]} 33. b5
{[%clk 0:01:07.6]} 33... axb5 {[%clk 0:00:05.1]} 34. a6 {[%clk 0:01:06.7]} 34...
Kd8 {[%clk 0:00:05.4]} 35. a7 {[%clk 0:01:06.6]} 1-0

[Event "*** Titled Tuesday Blitz"]
[Site "Chess.com"]
[Date "2020.11.24"]
[Round "2"]
[White "Thee-Chessboy"]
[Black "tigra"]
[Result "0-1"]
[WhiteElo "2512"]
[BlackElo "2799"]
[TimeControl "180+1"]
[EndTime "10:32:36 PST"]
[Termination "tigra won on time"]

1. Nf3 {[%clk 0:03:00.9]} 1... d5 {[%clk 0:02:59.4]} 2. g3 {[%clk 0:03:00.5]}
2... Nf6 {[%clk 0:02:59.1]} 3. Bg2 {[%clk 0:03:00.9]} 3... Bf5 {[%clk
0:02:59.8]} 4. O-O {[%clk 0:03:01.2]} 4... e6 {[%clk 0:03:00.4]} 5. c4 {[%clk
0:03:00]} 5... c6 {[%clk 0:03:00]} 6. d4 {[%clk 0:03:00]} 6... Nbd7 {[%clk
0:02:59.4]} 7. Nfd2 {[%clk 0:02:58.1]} 7... Qa5 {[%clk 0:02:56.2]} 8. Nc3 {[%clk
0:02:56.5]} 8... Qa6 {[%clk 0:02:47.8]} 9. Qb3 {[%clk 0:02:48]} 9... Be7 {[%clk
0:02:20.7]} 10. e4 {[%clk 0:02:38.7]} 10... dxe4 {[%clk 0:02:21.6]} 11. Ndxe4
{[%clk 0:02:38.6]} 11... Nxe4 {[%clk 0:02:19.4]} 12. Bxe4 {[%clk 0:02:33.4]}
12... Bxe4 {[%clk 0:02:18.5]} 13. Nxe4 {[%clk 0:02:32.8]} 13... Nb6 {[%clk
0:02:18.4]} 14. c5 {[%clk 0:02:00.3]} 14... Nd5 {[%clk 0:02:18]} 15. Bg5 {[%clk
0:01:58.3]} 15... f6 {[%clk 0:02:16]} 16. Be3 {[%clk 0:01:51]} 16... O-O-O
{[%clk 0:02:10.2]} 17. Rfe1 {[%clk 0:01:46.3]} 17... Rhe8 {[%clk 0:02:09.1]} 18.
Nd2 {[%clk 0:01:32.7]} 18... g6 {[%clk 0:02:07.2]} 19. Nc4 {[%clk 0:01:30.9]}
19... h5 {[%clk 0:02:06.3]} 20. Bh6 {[%clk 0:01:24.7]} 20... Rh8 {[%clk
0:02:03.8]} 21. Bd2 {[%clk 0:01:22.4]} 21... Nc7 {[%clk 0:02:02.1]} 22. Bf4
{[%clk 0:01:03.5]} 22... Rxd4 {[%clk 0:02:01.6]} 23. Nd6+ {[%clk 0:01:03.9]}
23... Kd7 {[%clk 0:01:57.7]} 24. Rad1 {[%clk 0:00:38.9]} 24... Rxd1 {[%clk
0:01:56.4]} 25. Qxd1 {[%clk 0:00:33.3]} 25... Nd5 {[%clk 0:01:51.3]} 26. Qc2
{[%clk 0:00:10.2]} 26... Rg8 {[%clk 0:01:44.8]} 27. Qe4 {[%clk 0:00:07.6]} 27...
e5 {[%clk 0:01:39.3]} 28. Bxe5 {[%clk 0:00:07.6]} 28... fxe5 {[%clk 0:01:39.9]}
29. Qxe5 {[%clk 0:00:08.1]} 29... Rf8 {[%clk 0:01:35.8]} 30. Qe6+ {[%clk
0:00:08]} 30... Kc7 {[%clk 0:01:36.1]} 31. Ne4 {[%clk 0:00:06.1]} 31... Rd8
{[%clk 0:01:28.7]} 32. Qe5+ {[%clk 0:00:05.8]} 32... Kc8 {[%clk 0:01:29]} 33.
Qe6+ {[%clk 0:00:05.8]} 33... Kb8 {[%clk 0:01:29.1]} 34. Qxg6 {[%clk 0:00:06.7]}
34... Qxa2 {[%clk 0:01:27.7]} 35. Qxh5 {[%clk 0:00:05.7]} 35... Qxb2 {[%clk
0:01:27]} 36. h4 {[%clk 0:00:04.7]} 36... a5 {[%clk 0:01:22.4]} 37. Qf3 {[%clk
0:00:03.4]} 37... a4 {[%clk 0:01:21.5]} 38. h5 {[%clk 0:00:03.7]} 38... a3
{[%clk 0:01:21.4]} 0-1

[Event "*** Titled Tuesday Blitz"]
[Site "Chess.com"]
[Date "2020.11.24"]
[Round "2"]
[White "kkpanu9"]
[Black "JoliyRoger"]
[Result "0-1"]
[WhiteElo "2055"]
[BlackElo "2379"]
[TimeControl "180+1"]
[EndTime "10:32:37 PST"]
[Termination "JoliyRoger won on time"]

1. e4 {[%clk 0:03:00.9]} 1... c6 {[%clk 0:02:57.5]} 2. d4 {[%clk 0:03:00.6]}
2... d5 {[%clk 0:02:58.1]} 3. exd5 {[%clk 0:03:01.5]} 3... cxd5 {[%clk
0:02:58.4]} 4. Bd3 {[%clk 0:03:02.2]} 4... Nc6 {[%clk 0:02:58.6]} 5. c3 {[%clk
0:03:02.7]} 5... g6 {[%clk 0:02:59]} 6. Bf4 {[%clk 0:02:59.6]} 6... Nh6 {[%clk
0:02:59]} 7. Nf3 {[%clk 0:02:58.2]} 7... Bg7 {[%clk 0:02:58.6]} 8. O-O {[%clk
0:02:53.6]} 8... O-O {[%clk 0:02:59.1]} 9. Re1 {[%clk 0:02:53.1]} 9... a6 {[%clk
0:02:55.4]} 10. Nbd2 {[%clk 0:02:50.3]} 10... Nf5 {[%clk 0:02:53.2]} 11. h3
{[%clk 0:02:31.6]} 11... Kh8 {[%clk 0:02:50.8]} 12. Nf1 {[%clk 0:02:18]} 12...
Re8 {[%clk 0:02:43.2]} 13. Ng3 {[%clk 0:02:12.8]} 13... Nd6 {[%clk 0:02:32.3]}
14. Ng5 {[%clk 0:01:45.6]} 14... Kg8 {[%clk 0:02:15.6]} 15. Nf3 {[%clk
0:01:18.8]} 15... b5 {[%clk 0:01:44.9]} 16. h4 {[%clk 0:01:03.4]} 16... f6
{[%clk 0:01:32.1]} 17. h5 {[%clk 0:00:20.5]} 17... g5 {[%clk 0:01:30.5]} 18.
Bxg5 {[%clk 0:00:20.1]} 18... fxg5 {[%clk 0:01:19.2]} 19. Nxg5 {[%clk 0:00:21]}
19... h6 {[%clk 0:01:16.4]} 20. Ne6 {[%clk 0:00:20.6]} 20... Bxe6 {[%clk
0:01:15.4]} 21. Rxe6 {[%clk 0:00:21.5]} 21... Qd7 {[%clk 0:01:06.9]} 22. Qg4
{[%clk 0:00:18.2]} 22... Nd8 {[%clk 0:00:53.9]} 23. Qg6 {[%clk 0:00:05.7]} 23...
Qxe6 {[%clk 0:00:51.8]} 24. Qh7+ {[%clk 0:00:03.3]} 24... Kf8 {[%clk 0:00:51.1]}
25. Bf5 {[%clk 0:00:01.3]} 25... Qg8 {[%clk 0:00:41.8]} 0-1

[Event "*** Titled Tuesday Blitz"]
[Site "Chess.com"]
[Date "2020.11.24"]
[Round "2"]
[White "UCantHandleDenker"]
[Black "BilodeauA"]
[Result "0-1"]
[WhiteElo "2521"]
[BlackElo "2844"]
[TimeControl "180+1"]
[EndTime "10:32:41 PST"]
[Termination "BilodeauA won by checkmate"]

1. Nf3 {[%clk 0:03:00.2]} 1... d5 {[%clk 0:02:57.7]} 2. d4 {[%clk 0:03:00.2]}
2... Nf6 {[%clk 0:02:57.7]} 3. g3 {[%clk 0:03:00.6]} 3... c6 {[%clk 0:02:52]} 4.
Bg2 {[%clk 0:03:00.2]} 4... Bf5 {[%clk 0:02:52.6]} 5. O-O {[%clk 0:02:59.3]}
5... h6 {[%clk 0:02:52.7]} 6. c4 {[%clk 0:02:59.8]} 6... e6 {[%clk 0:02:53.1]}
7. Qb3 {[%clk 0:03:00]} 7... Qb6 {[%clk 0:02:50.9]} 8. Nc3 {[%clk 0:02:55.1]}
8... Nbd7 {[%clk 0:02:48.7]} 9. c5 {[%clk 0:02:54.2]} 9... Qxb3 {[%clk
0:02:48.5]} 10. axb3 {[%clk 0:02:54.6]} 10... a6 {[%clk 0:02:49.1]} 11. b4
{[%clk 0:02:54.6]} 11... Rc8 {[%clk 0:02:47.8]} 12. h3 {[%clk 0:02:53.2]} 12...
Be7 {[%clk 0:02:42.4]} 13. g4 {[%clk 0:02:52.4]} 13... Bh7 {[%clk 0:02:40.3]}
14. Bf4 {[%clk 0:02:53]} 14... O-O {[%clk 0:02:39.9]} 15. Nd2 {[%clk 0:02:52.3]}
15... Bd8 {[%clk 0:02:32.9]} 16. Nb3 {[%clk 0:02:51.1]} 16... Bc7 {[%clk
0:02:33]} 17. e3 {[%clk 0:02:36.6]} 17... e5 {[%clk 0:02:32.2]} 18. Bh2 {[%clk
0:02:33.8]} 18... e4 {[%clk 0:02:24.1]} 19. Na5 {[%clk 0:02:30.5]} 19... Bxh2+
{[%clk 0:02:22.6]} 20. Kxh2 {[%clk 0:02:31.1]} 20... Rc7 {[%clk 0:02:23.2]} 21.
Na4 {[%clk 0:01:42.5]} 21... Re8 {[%clk 0:02:21.3]} 22. Rae1 {[%clk 0:01:41.1]}
22... Nf8 {[%clk 0:02:18]} 23. Nc3 {[%clk 0:01:37.7]} 23... g5 {[%clk
0:02:14.1]} 24. Kg3 {[%clk 0:01:25.9]} 24... Ng6 {[%clk 0:02:09.4]} 25. f3
{[%clk 0:01:22]} 25... exf3 {[%clk 0:02:09.8]} 26. Rxf3 {[%clk 0:01:19.7]} 26...
Kg7 {[%clk 0:02:07.7]} 27. Ref1 {[%clk 0:01:16.4]} 27... Re6 {[%clk 0:02:08.1]}
28. Re1 {[%clk 0:01:05.2]} 28... Nh4 {[%clk 0:02:03.9]} 29. Rf2 {[%clk
0:01:04.9]} 29... Rce7 {[%clk 0:02:03.6]} 30. Rfe2 {[%clk 0:01:01.7]} 30... Bd3
{[%clk 0:02:02.2]} 31. Rd2 {[%clk 0:00:53.7]} 31... Be4 {[%clk 0:02:00.5]} 32.
Bxe4 {[%clk 0:00:51.6]} 32... Nxe4+ {[%clk 0:02:01.4]} 33. Nxe4 {[%clk
0:00:51.3]} 33... Rxe4 {[%clk 0:02:02.3]} 34. Kf2 {[%clk 0:00:49.5]} 34... f5
{[%clk 0:02:01.6]} 35. gxf5 {[%clk 0:00:36.9]} 35... Nxf5 {[%clk 0:02:02.5]} 36.
Rde2 {[%clk 0:00:37]} 36... Rf7 {[%clk 0:02:02.4]} 37. Kg2 {[%clk 0:00:37.2]}
37... Nh4+ {[%clk 0:02:02.5]} 38. Kg3 {[%clk 0:00:35.7]} 38... h5 {[%clk
0:01:54.7]} 39. Rf2 {[%clk 0:00:33.6]} 39... Rfe7 {[%clk 0:01:55.1]} 40. Kh2
{[%clk 0:00:32.6]} 40... Kg6 {[%clk 0:01:47.6]} 41. Nb3 {[%clk 0:00:29]} 41...
g4 {[%clk 0:01:44.1]} 42. hxg4 {[%clk 0:00:28.2]} 42... hxg4 {[%clk 0:01:44.6]}
43. Rg1 {[%clk 0:00:20.4]} 43... Kg5 {[%clk 0:01:35.6]} 44. Rf8 {[%clk
0:00:18.7]} 44... Rxe3 {[%clk 0:01:36.1]} 45. Rg8+ {[%clk 0:00:17.3]} 45... Ng6
{[%clk 0:01:36.7]} 46. Na5 {[%clk 0:00:15.6]} 46... Rh3+ {[%clk 0:01:25]} 47.
Kg2 {[%clk 0:00:15.5]} 47... Re2+ {[%clk 0:01:25.4]} 48. Kf1 {[%clk 0:00:15.6]}
48... Rhh2 {[%clk 0:01:25.9]} 49. Rg3 {[%clk 0:00:11.7]} 49... Rxb2 {[%clk
0:01:24.7]} 50. Nxb7 {[%clk 0:00:11.1]} 50... Rb1# {[%clk 0:01:24.7]} 0-1

[Event "*** Titled Tuesday Blitz"]
[Site "Chess.com"]
[Date "2020.11.24"]
[Round "2"]
[White "annacramling"]
[Black "freshfoodcompany"]
[Result "0-1"]
[WhiteElo "2054"]
[BlackElo "2377"]
[TimeControl "180+1"]
[EndTime "10:32:42 PST"]
[Termination "freshfoodcompany won by resignation"]

1. d4 {[%clk 0:03:00.4]} 1... d5 {[%clk 0:03:00]} 2. c4 {[%clk 0:03:00.5]} 2...
e6 {[%clk 0:03:00.4]} 3. Nc3 {[%clk 0:03:00.1]} 3... c6 {[%clk 0:03:00.5]} 4. e3
{[%clk 0:02:59.4]} 4... Nf6 {[%clk 0:03:00.4]} 5. Nf3 {[%clk 0:02:59.2]} 5...
Be7 {[%clk 0:03:00]} 6. Bd3 {[%clk 0:02:56.4]} 6... O-O {[%clk 0:03:00]} 7. O-O
{[%clk 0:02:56.5]} 7... dxc4 {[%clk 0:02:59]} 8. Bxc4 {[%clk 0:02:56.8]} 8... b5
{[%clk 0:02:59.1]} 9. Bd3 {[%clk 0:02:56.8]} 9... Bb7 {[%clk 0:02:59.1]} 10. e4
{[%clk 0:02:54.5]} 10... Nbd7 {[%clk 0:02:58.1]} 11. e5 {[%clk 0:02:54.5]} 11...
Nd5 {[%clk 0:02:56.8]} 12. Ne4 {[%clk 0:02:54]} 12... Re8 {[%clk 0:02:54.1]} 13.
Neg5 {[%clk 0:02:31.8]} 13... Nf8 {[%clk 0:02:51]} 14. Bd2 {[%clk 0:02:27.7]}
14... Nb4 {[%clk 0:02:45]} 15. Bxb4 {[%clk 0:02:01.3]} 15... Bxb4 {[%clk
0:02:43.1]} 16. Qc2 {[%clk 0:02:00]} 16... h6 {[%clk 0:02:40.3]} 17. Bh7+ {[%clk
0:01:59.4]} 17... Nxh7 {[%clk 0:02:35.1]} 18. Qxh7+ {[%clk 0:01:56.2]} 18... Kf8
{[%clk 0:02:34.2]} 19. Qh8+ {[%clk 0:01:51.1]} 19... Ke7 {[%clk 0:02:33.4]} 20.
Qxg7 {[%clk 0:01:48.6]} 20... hxg5 {[%clk 0:02:32.8]} 21. Nxg5 {[%clk
0:01:42.8]} 21... Kd7 {[%clk 0:02:23.1]} 22. Ne4 {[%clk 0:01:22.4]} 22... Kc7
{[%clk 0:01:57.5]} 23. Qxf7+ {[%clk 0:01:16.8]} 23... Re7 {[%clk 0:01:52.4]} 24.
Qf6 {[%clk 0:01:10]} 24... Qf8 {[%clk 0:01:39.9]} 25. a3 {[%clk 0:00:49.2]}
25... Ba5 {[%clk 0:01:33.3]} 26. Qh4 {[%clk 0:00:35.2]} 26... Rd8 {[%clk
0:01:21.4]} 27. Nd6 {[%clk 0:00:29.7]} 27... Rg7 {[%clk 0:01:14.1]} 28. Rac1
{[%clk 0:00:26.3]} 28... Kb8 {[%clk 0:01:06.8]} 29. Qe4 {[%clk 0:00:20.4]} 29...
Rxd6 {[%clk 0:00:57.7]} 30. exd6 {[%clk 0:00:20.1]} 30... c5 {[%clk 0:00:57.7]}
31. d5 {[%clk 0:00:05.2]} 31... Bxd5 {[%clk 0:00:57]} 32. Qe5 {[%clk 0:00:02.5]}
32... Rxg2+ {[%clk 0:00:55.4]} 33. Kh1 {[%clk 0:00:02.7]} 33... Rg5+ {[%clk
0:00:50.7]} 0-1

[Event "*** Titled Tuesday Blitz"]
[Site "Chess.com"]
[Date "2020.11.24"]
[Round "2"]
[White "pooh2012"]
[Black "svilson23"]
[Result "1-0"]
[WhiteElo "2461"]
[BlackElo "2260"]
[TimeControl "180+1"]
[EndTime "10:32:43 PST"]
[Termination "pooh2012 won by resignation"]

1. d4 {[%clk 0:03:00.9]} 1... d5 {[%clk 0:02:54]} 2. Nc3 {[%clk 0:03:00]} 2...
Nf6 {[%clk 0:02:51]} 3. Bf4 {[%clk 0:02:59.7]} 3... e6 {[%clk 0:02:50.6]} 4. e3
{[%clk 0:02:57.1]} 4... Bd6 {[%clk 0:02:45.1]} 5. Qf3 {[%clk 0:02:56]} 5... a6
{[%clk 0:02:38.2]} 6. g4 {[%clk 0:02:55.1]} 6... Bxf4 {[%clk 0:02:34.6]} 7. Qxf4
{[%clk 0:02:52.4]} 7... Qd6 {[%clk 0:02:32.7]} 8. Qf3 {[%clk 0:02:51.3]} 8... e5
{[%clk 0:02:21.1]} 9. g5 {[%clk 0:02:48.9]} 9... e4 {[%clk 0:02:21.6]} 10. Qg3
{[%clk 0:02:30.1]} 10... Qxg3 {[%clk 0:02:13.7]} 11. hxg3 {[%clk 0:02:29.6]}
11... Ng8 {[%clk 0:01:52.2]} 12. Nxd5 {[%clk 0:02:27.5]} 12... Kd8 {[%clk
0:01:52.4]} 13. Bg2 {[%clk 0:02:25.8]} 13... Bf5 {[%clk 0:01:31.4]} 14. Nc3
{[%clk 0:02:22.4]} 14... f6 {[%clk 0:01:17.2]} 15. Bxe4 {[%clk 0:02:19.5]} 15...
Bxe4 {[%clk 0:01:15.8]} 16. Nxe4 {[%clk 0:02:20.4]} 16... Nc6 {[%clk 0:01:10.9]}
17. gxf6 {[%clk 0:02:18.2]} 17... gxf6 {[%clk 0:01:11.4]} 18. Nf3 {[%clk
0:02:11.8]} 18... Ke7 {[%clk 0:01:09.6]} 19. Kd2 {[%clk 0:02:05.5]} 19... Rd8
{[%clk 0:01:08.2]} 20. Rh5 {[%clk 0:02:00.2]} 20... Kf7 {[%clk 0:01:05.8]} 21.
Rah1 {[%clk 0:01:58.6]} 21... Kg7 {[%clk 0:01:05.5]} 22. Nc5 {[%clk 0:01:52.8]}
22... Re8 {[%clk 0:00:58.5]} 23. Nh4 {[%clk 0:01:47.1]} 23... Nge7 {[%clk
0:00:57.4]} 24. Ne6+ {[%clk 0:01:42.6]} 24... Kf7 {[%clk 0:00:57.4]} 25. Nf4
{[%clk 0:01:38.6]} 25... Rd8 {[%clk 0:00:43.6]} 26. Nf3 {[%clk 0:01:34.9]} 26...
Kg8 {[%clk 0:00:33]} 27. Rh6 {[%clk 0:01:22.8]} 27... Rd6 {[%clk 0:00:30.7]} 28.
c4 {[%clk 0:01:15]} 28... b6 {[%clk 0:00:29.7]} 29. Ke2 {[%clk 0:01:06.9]} 29...
Nf5 {[%clk 0:00:28.1]} 30. R6h5 {[%clk 0:01:03.2]} 30... Ng7 {[%clk 0:00:28.5]}
31. Rd5 {[%clk 0:01:02.2]} 31... Kf7 {[%clk 0:00:21.4]} 32. Rxd6 {[%clk
0:01:00.4]} 32... cxd6 {[%clk 0:00:22.3]} 33. Nd5 {[%clk 0:00:55.1]} 33... Rb8
{[%clk 0:00:20]} 34. Rxh7 {[%clk 0:00:47.1]} 34... b5 {[%clk 0:00:18.7]} 35. Nd2
{[%clk 0:00:41.7]} 35... bxc4 {[%clk 0:00:18.1]} 36. Nxc4 {[%clk 0:00:40.8]}
36... Rb5 {[%clk 0:00:17.5]} 37. Nxd6+ {[%clk 0:00:39.4]} 1-0

[Event "*** Titled Tuesday Blitz"]
[Site "Chess.com"]
[Date "2020.11.24"]
[Round "2"]
[White "Soltan49"]
[Black "santosalberto1987"]
[Result "0-1"]
[WhiteElo "2240"]
[BlackElo "2456"]
[TimeControl "180+1"]
[EndTime "10:32:43 PST"]
[Termination "santosalberto1987 won by resignation"]

1. e4 {[%clk 0:03:00.9]} 1... c5 {[%clk 0:02:31.1]} 2. Nf3 {[%clk 0:02:55.1]}
2... Nc6 {[%clk 0:02:30.7]} 3. Bb5 {[%clk 0:02:55.7]} 3... g6 {[%clk 0:02:30.7]}
4. c3 {[%clk 0:02:52.5]} 4... Bg7 {[%clk 0:02:30.6]} 5. d4 {[%clk 0:02:50.2]}
5... cxd4 {[%clk 0:02:29]} 6. cxd4 {[%clk 0:02:50.3]} 6... Nf6 {[%clk 0:02:26]}
7. Bxc6 {[%clk 0:02:40.7]} 7... dxc6 {[%clk 0:02:25.3]} 8. Nc3 {[%clk
0:02:37.1]} 8... Bg4 {[%clk 0:02:25.5]} 9. Be3 {[%clk 0:02:34.5]} 9... O-O
{[%clk 0:02:11.1]} 10. h3 {[%clk 0:02:32.9]} 10... Bxf3 {[%clk 0:02:11.1]} 11.
Qxf3 {[%clk 0:02:33.8]} 11... e5 {[%clk 0:02:06.5]} 12. Rd1 {[%clk 0:01:53.9]}
12... exd4 {[%clk 0:02:05.1]} 13. Bxd4 {[%clk 0:01:49.9]} 13... Qe7 {[%clk
0:02:03.4]} 14. O-O {[%clk 0:01:49.6]} 14... Rfe8 {[%clk 0:01:51.7]} 15. Rfe1
{[%clk 0:01:28.6]} 15... Rad8 {[%clk 0:01:40.2]} 16. Qe2 {[%clk 0:00:59.2]}
16... b5 {[%clk 0:01:35.9]} 17. e5 {[%clk 0:00:46.8]} 17... Nd5 {[%clk
0:01:35.1]} 18. Nxd5 {[%clk 0:00:19.3]} 18... Rxd5 {[%clk 0:01:34.6]} 19. f4
{[%clk 0:00:11.2]} 19... Red8 {[%clk 0:01:29.1]} 20. Bc3 {[%clk 0:00:09]} 20...
Qd7 {[%clk 0:01:25.5]} 21. Rxd5 {[%clk 0:00:08.3]} 21... Qxd5 {[%clk 0:01:26.4]}
22. e6 {[%clk 0:00:08.2]} 22... fxe6 {[%clk 0:01:23.1]} 23. Qxe6+ {[%clk
0:00:08]} 23... Qxe6 {[%clk 0:01:22.8]} 24. Rxe6 {[%clk 0:00:08.9]} 24... Bxc3
{[%clk 0:01:20.8]} 25. bxc3 {[%clk 0:00:09.8]} 25... Rd2 {[%clk 0:01:10.9]} 26.
Rxc6 {[%clk 0:00:05.8]} 26... Rxa2 {[%clk 0:01:10.7]} 27. Rc7 {[%clk 0:00:05.2]}
27... a5 {[%clk 0:01:09.8]} 28. g4 {[%clk 0:00:04.2]} 28... a4 {[%clk
0:01:08.9]} 29. f5 {[%clk 0:00:02.9]} 29... gxf5 {[%clk 0:01:08.6]} 30. gxf5
{[%clk 0:00:03.8]} 30... Rc2 {[%clk 0:01:06.7]} 31. f6 {[%clk 0:00:02.7]} 31...
a3 {[%clk 0:01:01.9]} 32. Rg7+ {[%clk 0:00:02.9]} 32... Kf8 {[%clk 0:01:01.6]}
33. Rxh7 {[%clk 0:00:03.1]} 33... a2 {[%clk 0:01:01.8]} 34. Rh8+ {[%clk
0:00:03.2]} 34... Kf7 {[%clk 0:01:01.9]} 35. Ra8 {[%clk 0:00:03.8]} 35... Rc1+
{[%clk 0:01:01.8]} 36. Kg2 {[%clk 0:00:04.4]} 36... a1=Q {[%clk 0:01:01.7]} 37.
Rxa1 {[%clk 0:00:05.3]} 37... Rxa1 {[%clk 0:01:02.4]} 0-1